[Event "African Open (w)"]
[Site "followchess.com"]
[Date "2022.09.26"]
[Round "8"]
[White "ONOJA, Iyefu Joy"]
[Black "Wafa, Shahenda"]
[Result "0-1"]
[ECO "E60"]
[WhiteElo "1762"]
[BlackElo "2110"]
[PlyCount "100"]
[EventDate "2022.??.??"]
[TimeControl "5400+30"]

1. d4 {[%emt 0:00:05]} Nf6 {[%emt 0:00:08]} 2. Nf3 {[%emt 0:00:26]} g6 {
[%emt 0:00:08]} 3. c4 {[%emt 0:00:36]} Bg7 {[%emt 0:00:06]} 4. Nc3 {[%emt 0:00:
36]} O-O {[%emt 0:00:21]} 5. Bf4 {[%emt 0:00:55]} d6 {[%emt 0:01:01]} 6. e3 {
[%emt 0:04:40]} Nbd7 {[%emt 0:01:27]} 7. Be2 {[%emt 0:01:34]} b6 {[%emt 0:04:
34]} 8. h3 Bb7 {[%emt 0:00:11]} 9. O-O {[%emt 0:04:25]} Re8 {[%emt 0:02:04]}
10. Qc2 {[%emt 0:07:30]} e5 {[%emt 0:00:16]} 11. dxe5 {[%emt 0:00:18]} dxe5 {
[%emt 0:00:48]} 12. Bh2 {[%emt 0:00:14]} Qe7 {[%emt 0:01:31]} 13. Nb5 {[%emt 0:
02:04]} Be4 {[%emt 0:08:28]} 14. Qc1 {[%emt 0:04:55]} Qc5 {[%emt 0:07:58]} 15.
Nd2 {[%emt 0:03:48]} a6 {[%emt 0:03:00]} 16. Nxe4 {[%emt 0:06:13]} Nxe4 {
[%emt 0:00:14]} 17. Bf3 {[%emt 0:06:20]} Ndf6 {[%emt 0:08:57]} 18. Nc3 {
[%emt 0:15:46]} Nxc3 {[%emt 0:00:08]} 19. Qxc3 {[%emt 0:00:04]} e4 {[%emt 0:00:
50]} 20. Be2 {[%emt 0:00:08]} Ng4 {[%emt 0:00:54]} 21. Qc2 {[%emt 0:01:17]}
Nxh2 {[%emt 0:00:09]} 22. Kxh2 {[%emt 0:00:06]} Qe5+ {[%emt 0:00:15]} 23. Kg1 {
[%emt 0:00:46]} Qxb2 {[%emt 0:00:08]} 24. Qxb2 {[%emt 0:01:04]} Bxb2 {[%emt 0:
00:06]} 25. Rad1 {[%emt 0:00:30]} Rad8 {[%emt 0:09:57]} 26. Rxd8 {[%emt 0:01:
37]} Rxd8 {[%emt 0:00:05]} 27. Rd1 {[%emt 0:00:05]} Re8 {[%emt 0:03:24]} 28. a4
{[%emt 0:01:30]} Ba3 {[%emt 0:01:31]} 29. Ra1 {[%emt 0:01:16]} Bb4 {[%emt 0:01:
10]} 30. Rb1 {[%emt 0:03:10]} a5 {[%emt 0:00:31]} 31. Rd1 {[%emt 0:00:36]} Kf8
{[%emt 0:01:23]} 32. Rd4 {[%emt 0:00:29]} Re5 {[%emt 0:03:59]} 33. Rd5 {
[%emt 0:06:04]} Re6 {[%emt 0:04:35]} 34. Bg4 {[%emt 0:04:14]} f5 {[%emt 0:01:
45]} 35. Be2 {[%emt 0:00:06]} Ke7 {[%emt 0:00:22]} 36. g4 {[%emt 0:00:17]} Rf6
{[%emt 0:04:03]} 37. Kg2 {[%emt 0:03:58]} c6 {[%emt 0:02:41]} 38. Re5+ {
[%emt 0:02:46]} Kd7 {[%emt 0:15:39]} 39. gxf5 {[%emt 0:00:12]} gxf5 {[%emt 0:
00:14]} 40. Bh5 {[%emt 0:00:20]} Be7 {[%emt 0:01:08]} 41. f3 {[%emt 0:00:54]}
Kd6 {[%emt 0:00:23]} 42. f4 {[%emt 0:01:04]} Kd7 {[%emt 0:01:31]} 43. Kg3 {
[%emt 0:01:37]} Rf8 {[%emt 0:00:28]} 44. Bg4 {[%emt 0:00:53]} fxg4 {[%emt 0:00:
30]} 45. hxg4 {[%emt 0:00:04]} Bc5 {[%emt 0:00:55]} 46. Rxe4 {[%emt 0:00:36]}
Re8 {[%emt 0:00:24]} 47. Rxe8 {[%emt 0:00:34]} Kxe8 {[%emt 0:00:05]} 48. Kf3 {
[%emt 0:00:26]} b5 {[%emt 0:00:45]} 49. cxb5 {[%emt 0:00:07]} cxb5 {[%emt 0:00:
12]} 50. axb5 {[%emt 0:00:43]} a4 {[%emt 0:00:05]} 0-1

[Event "African Open (w)"]
[Site "followchess.com"]
[Date "2022.09.26"]
[Round "8"]
[White "Vilhete, Vania Fausto Da T."]
[Black "Phiri Bertha"]
[Result "1-0"]
[ECO "D30"]
[WhiteElo "1718"]
[BlackElo "1584"]
[PlyCount "57"]
[EventDate "2022.??.??"]
[TimeControl "5400+30"]

1. d4 {[%emt 0:00:05]} d5 {[%emt 0:00:10]} 2. c4 {[%emt 0:00:08]} e6 {[%emt 0:
00:31]} 3. Nf3 {[%emt 0:00:25]} Nf6 {[%emt 0:00:07]} 4. e3 {[%emt 0:00:16]} Be7
{[%emt 0:00:03]} 5. Nc3 {[%emt 0:00:13]} Nbd7 {[%emt 0:00:38]} 6. Bd3 {[%emt 0:
00:16]} dxc4 {[%emt 0:01:37]} 7. Bxc4 {[%emt 0:00:09]} a6 {[%emt 0:00:14]} 8.
a4 {[%emt 0:01:13]} O-O {[%emt 0:00:20]} 9. O-O {[%emt 0:00:06]} c5 {[%emt 0:
00:02]} 10. Re1 {[%emt 0:01:05]} b6 {[%emt 0:03:45]} 11. d5 {[%emt 0:03:27]}
exd5 {[%emt 0:00:05]} 12. Nxd5 {[%emt 0:00:19]} Bb7 {[%emt 0:02:40]} 13. e4 {
[%emt 0:05:47]} Nxd5 {[%emt 0:00:11]} 14. exd5 {[%emt 0:01:00]} Bd6 {[%emt 0:
00:07]} 15. Bg5 {[%emt 0:02:21]} Nf6 {[%emt 0:06:19]} 16. Qb3 {[%emt 0:03:16]}
h6 {[%emt 0:00:14]} 17. Bh4 {[%emt 0:05:53]} Rb8 {[%emt 0:10:21]} 18. Qd3 {
[%emt 0:16:14]} g5 {[%emt 0:11:21]} 19. Nxg5 {[%emt 0:07:58]} hxg5 {[%emt 0:00:
09]} 20. Bxg5 {[%emt 0:00:07]} Kg7 {[%emt 0:04:25]} 21. f4 {[%emt 0:03:17]} Rh8
{[%emt 0:02:19]} 22. Qc3 {[%emt 0:03:50]} b5 {[%emt 0:15:42]} 23. Re3 {[%emt 0:
07:37]} Be7 {[%emt 0:08:39]} 24. Rae1 {[%emt 0:07:14]} b4 {[%emt 0:06:08]} 25.
Qe5 {[%emt 0:04:16]} Kf8 {[%emt 0:04:38]} 26. Qxe7+ {[%emt 0:06:56]} Qxe7 {
[%emt 0:00:06]} 27. Rxe7 {[%emt 0:00:12]} Ng8 {[%emt 0:05:45]} 28. Rc7 {
[%emt 0:09:47]} f6 {[%emt 0:02:51]} 29. d6 {[%emt 0:00:29]} 1-0

[Event "African Open (w)"]
[Site "followchess.com"]
[Date "2022.09.26"]
[Round "8"]
[White "Pelomoh Jessica"]
[Black "Laubscher, Anzel"]
[Result "0-1"]
[ECO "D02"]
[WhiteElo "1904"]
[BlackElo "1705"]
[PlyCount "59"]
[EventDate "2022.??.??"]
[TimeControl "5400+30"]

1. d4 {[%emt 0:00:06]} d5 {[%emt 0:00:03]} 2. Bf4 {[%emt 0:00:26]} Nf6 {
[%emt 0:00:06]} 3. Nf3 {[%emt 0:00:06]} c5 {[%emt 0:00:09]} 4. e3 {[%emt 0:00:
07]} Nc6 {[%emt 0:00:25]} 5. c3 {[%emt 0:00:10]} Qb6 {[%emt 0:00:38]} 6. Qc1 {
[%emt 0:01:18]} Nh5 {[%emt 0:01:46]} 7. Bg3 {[%emt 0:01:06]} Nxg3 {[%emt 0:02:
37]} 8. hxg3 {[%emt 0:00:07]} Bf5 {[%emt 0:03:12]} 9. Nbd2 {[%emt 0:00:18]} h6
{[%emt 0:02:58]} 10. Be2 {[%emt 0:00:34]} e6 {[%emt 0:04:18]} 11. dxc5 {
[%emt 0:00:51]} Bxc5 {[%emt 0:01:42]} 12. Nb3 {[%emt 0:00:49]} Be7 {[%emt 0:04:
03]} 13. Nbd4 {[%emt 0:00:15]} Be4 {[%emt 0:02:01]} 14. g4 {[%emt 0:06:19]} Rc8
{[%emt 0:07:49]} 15. Qd2 {[%emt 0:00:04]} O-O {[%emt 0:08:40]} 16. g5 {[%emt 0:
00:24]} Nxd4 {[%emt 0:01:07]} 17. exd4 {[%emt 0:02:43]} Bxf3 {[%emt 0:09:13]}
18. gxh6 {[%emt 0:01:53]} g5 {[%emt 0:02:18]} 19. Bxf3 {[%emt 0:00:56]} Qd6 {
[%emt 0:07:23]} 20. O-O-O {[%emt 0:02:25]} b5 {[%emt 0:04:07]} 21. Qe2 {
[%emt 0:09:18]} b4 {[%emt 0:05:57]} 22. Kc2 {[%emt 0:15:22]} bxc3 {[%emt 0:02:
42]} 23. b3 {[%emt 0:00:16]} Bf6 {[%emt 0:06:58]} 24. Rh5 {[%emt 0:25:24]} Qa3
{[%emt 0:02:22]} 25. Qe3 {[%emt 0:21:22]} Qb2+ {[%emt 0:01:03]} 26. Kd3 {
[%emt 0:03:30]} c2 {[%emt 0:00:41]} 27. Qd2 {[%emt 0:06:29]} Qxd4+ {[%emt 0:06:
18]} 28. Ke2 {[%emt 0:01:11]} cxd1=Q+ {[%emt 0:00:39]} 29. Qxd1 {[%emt 0:00:36]
} Qb2+ {[%emt 0:00:49]} 30. Ke3 0-1

[Event "African Open (w)"]
[Site "followchess.com"]
[Date "2022.09.26"]
[Round "8"]
[White "Paulo, Jemima"]
[Black "Likando Namakau"]
[Result "1-0"]
[ECO "D05"]
[WhiteElo "1886"]
[BlackElo "1527"]
[PlyCount "133"]
[EventDate "2022.??.??"]
[TimeControl "5400+30"]

1. d4 {[%emt 0:00:02]} d5 {[%emt 0:00:30]} 2. Nf3 {[%emt 0:00:08]} Nf6 {
[%emt 0:00:37]} 3. e3 {[%emt 0:00:18]} e6 {[%emt 0:00:23]} 4. Bd3 {[%emt 0:00:
07]} c5 {[%emt 0:01:01]} 5. b3 {[%emt 0:00:26]} Be7 {[%emt 0:01:06]} 6. Bb2 {
[%emt 0:00:09]} a6 {[%emt 0:00:45]} 7. Nbd2 {[%emt 0:04:48]} Nc6 {[%emt 0:03:
18]} 8. Ne5 {[%emt 0:00:09]} Bd7 {[%emt 0:01:44]} 9. O-O {[%emt 0:00:11]} Nb4 {
[%emt 0:01:59]} 10. Be2 {[%emt 0:00:12]} cxd4 {[%emt 0:02:00]} 11. exd4 {
[%emt 0:00:10]} O-O {[%emt 0:03:04]} 12. a3 {[%emt 0:00:30]} Nc6 13. Bd3 h6 {
[%emt 0:03:23]} 14. Re1 {[%emt 0:03:40]} Nxe5 {[%emt 0:03:15]} 15. dxe5 {
[%emt 0:00:11]} Nh7 {[%emt 0:02:02]} 16. Qg4 {[%emt 0:00:35]} Bc5 {[%emt 0:01:
08]} 17. b4 {[%emt 0:00:25]} Ba7 {[%emt 0:00:40]} 18. Nf3 {[%emt 0:00:11]} Rc8
{[%emt 0:03:42]} 19. h4 {[%emt 0:04:56]} Bb5 {[%emt 0:06:33]} 20. Rac1 {
[%emt 0:01:37]} Bxd3 {[%emt 0:00:18]} 21. cxd3 {[%emt 0:00:07]} Qd7 {[%emt 0:
03:58]} 22. Bd4 {[%emt 0:03:01]} Bxd4 {[%emt 0:01:08]} 23. Nxd4 {[%emt 0:00:18]
} Rxc1 {[%emt 0:02:32]} 24. Rxc1 {[%emt 0:00:06]} Rc8 {[%emt 0:00:45]} 25. Qd1
{[%emt 0:00:52]} Nf8 {[%emt 0:03:11]} 26. h5 {[%emt 0:00:39]} Rxc1 {[%emt 0:01:
43]} 27. Qxc1 {[%emt 0:00:10]} Qd8 {[%emt 0:03:19]} 28. g3 {[%emt 0:01:23]} f6
{[%emt 0:01:43]} 29. exf6 {[%emt 0:02:29]} Qxf6 {[%emt 0:00:33]} 30. Nb3 {
[%emt 0:01:02]} Qd8 {[%emt 0:11:36]} 31. Qe3 {[%emt 0:06:38]} Qc8 {[%emt 0:09:
53]} 32. Nc5 {[%emt 0:00:15]} b6 {[%emt 0:02:00]} 33. Na4 {[%emt 0:00:07]} b5 {
[%emt 0:03:13]} 34. Nc5 {[%emt 0:00:13]} Qc6 {[%emt 0:02:34]} 35. d4 {[%emt 0:
00:31]} Kf7 {[%emt 0:02:34]} 36. Qf4+ {[%emt 0:03:18]} Kg8 {[%emt 0:00:40]} 37.
Qb8 {[%emt 0:01:21]} Kf7 {[%emt 0:02:44]} 38. Qa7+ {[%emt 0:00:07]} Kg8 {
[%emt 0:00:13]} 39. Qxa6 {[%emt 0:00:32]} Qxa6 {[%emt 0:00:24]} 40. Nxa6 {
[%emt 0:00:07]} Kf7 {[%emt 0:06:18]} 41. Nc7 {[%emt 0:00:17]} Ke7 {[%emt 0:00:
39]} 42. Nxb5 {[%emt 0:00:10]} Kd7 {[%emt 0:00:15]} 43. a4 {[%emt 0:00:47]} Kc6
{[%emt 0:00:34]} 44. Kf1 {[%emt 0:00:38]} Nd7 {[%emt 0:00:12]} 45. f3 {[%emt 0:
01:16]} Nb6 {[%emt 0:00:15]} 46. Nc3 {[%emt 0:00:11]} Nc4 {[%emt 0:04:03]} 47.
Ke2 {[%emt 0:03:29]} Nd6 {[%emt 0:04:32]} 48. g4 {[%emt 0:01:42]} Nc4 {[%emt 0:
00:59]} 49. a5 {[%emt 0:01:47]} Kd6 {[%emt 0:01:03]} 50. a6 {[%emt 0:00:28]}
Kc7 {[%emt 0:00:25]} 51. Nb5+ {[%emt 0:00:41]} Kc8 {[%emt 0:01:20]} 52. a7 {
[%emt 0:01:14]} Nb6 {[%emt 0:00:51]} 53. Ke3 {[%emt 0:01:16]} Kd7 {[%emt 0:00:
57]} 54. Nc3 {[%emt 0:00:42]} Kc6 {[%emt 0:00:00]} 55. Na4 {[%emt 0:00:00]} Na8
{[%emt 0:00:00]} 56. Nc5 {[%emt 0:00:00]} Kd6 {[%emt 0:00:00]} 57. Kf4 {
[%emt 0:00:00]} Nb6 {[%emt 0:00:00]} 58. Na4 {[%emt 0:00:00]} Na8 {[%emt 0:00:
00]} 59. b5 {[%emt 0:00:00]} Kc7 {[%emt 0:00:00]} 60. b6+ {[%emt 0:00:00]} Kb7
{[%emt 0:00:00]} 61. Ke5 {[%emt 0:00:00]} Nxb6 {[%emt 0:00:00]} 62. Nxb6 {
[%emt 0:00:00]} Kxa7 {[%emt 0:00:00]} 63. Nxd5 {[%emt 0:00:00]} exd5 {[%emt 0:
00:00]} 64. Kxd5 {[%emt 0:00:00]} Kb8 {[%emt 0:00:00]} 65. Ke6 {[%emt 0:00:00]}
Kc7 {[%emt 0:00:33]} 66. d5 {[%emt 0:00:00]} Kd8 {[%emt 0:00:09]} 67. Kd6 {
[%emt 0:00:00]} 1-0

[Event "African Open (w)"]
[Site "followchess.com"]
[Date "2022.09.26"]
[Round "8"]
[White "Mbatha, Constance"]
[Black "Michael Bridget"]
[Result "0-1"]
[ECO "D05"]
[WhiteElo "1613"]
[BlackElo "1800"]
[PlyCount "116"]
[EventDate "2022.??.??"]
[TimeControl "5400+30"]

1. d4 {[%emt 0:00:02]} d5 {[%emt 0:00:31]} 2. Nf3 {[%emt 0:00:08]} Nf6 {
[%emt 0:00:43]} 3. e3 {[%emt 0:00:32]} e6 {[%emt 0:02:02]} 4. c4 {[%emt 0:00:
19]} Be7 {[%emt 0:01:31]} 5. Nc3 {[%emt 0:00:24]} O-O {[%emt 0:01:56]} 6. a3 {
[%emt 0:00:07]} a6 {[%emt 0:01:58]} 7. Bd2 {[%emt 0:00:37]} c5 {[%emt 0:00:32]}
8. dxc5 {[%emt 0:01:13]} Bxc5 {[%emt 0:00:24]} 9. b4 {[%emt 0:00:10]} Be7 {
[%emt 0:00:27]} 10. c5 {[%emt 0:01:53]} b6 {[%emt 0:01:18]} 11. cxb6 {[%emt 0:
00:58]} Qxb6 {[%emt 0:00:10]} 12. Na4 {[%emt 0:02:04]} Qd8 {[%emt 0:00:55]} 13.
Rc1 {[%emt 0:00:09]} Bd7 {[%emt 0:01:23]} 14. Bd3 {[%emt 0:01:23]} Bb5 {
[%emt 0:01:37]} 15. Nb2 {[%emt 0:01:40]} Bxd3 {[%emt 0:01:58]} 16. Nxd3 {
[%emt 0:00:06]} Nbd7 {[%emt 0:04:18]} 17. O-O {[%emt 0:00:14]} Ne4 {[%emt 0:01:
41]} 18. Nde5 {[%emt 0:01:56]} Nxe5 {[%emt 0:04:24]} 19. Nxe5 {[%emt 0:01:04]}
Bf6 {[%emt 0:00:46]} 20. Nc6 {[%emt 0:01:20]} Qb6 {[%emt 0:01:33]} 21. f3 {
[%emt 0:02:28]} Nd6 {[%emt 0:01:56]} 22. Na5 {[%emt 0:00:45]} Rac8 {[%emt 0:01:
07]} 23. Qb3 {[%emt 0:01:51]} Bg5 {[%emt 0:04:02]} 24. g3 {[%emt 0:06:40]} Nf5
{[%emt 0:01:44]} 25. f4 {[%emt 0:00:54]} Bf6 {[%emt 0:00:57]} 26. g4 {[%emt 0:
08:08]} Nd6 {[%emt 0:00:18]} 27. Rfd1 {[%emt 0:03:53]} Ne4 {[%emt 0:01:21]} 28.
Be1 {[%emt 0:00:23]} Qb5 {[%emt 0:01:55]} 29. g5 {[%emt 0:07:16]} Rxc1 {
[%emt 0:01:15]} 30. Rxc1 {[%emt 0:01:01]} Bd8 {[%emt 0:00:30]} 31. Qc2 {
[%emt 0:02:16]} Bb6 {[%emt 0:01:20]} 32. Bf2 {[%emt 0:06:29]} Bxa5 {[%emt 0:03:
10]} 33. bxa5 {[%emt 0:00:02]} Qxa5 {[%emt 0:00:18]} 34. Qb2 {[%emt 0:03:28]}
Qa4 {[%emt 0:12:14]} 35. Be1 {[%emt 0:01:43]} Re8 {[%emt 0:04:10]} 36. Bb4 {
[%emt 0:11:19]} Qb5 {[%emt 0:01:42]} 37. Qc2 {[%emt 0:01:41]} a5 {[%emt 0:05:
48]} 38. Be1 {[%emt 0:00:19]} Qb6 {[%emt 0:00:40]} 39. Bf2 {[%emt 0:01:23]} f6
{[%emt 0:06:20]} 40. Rb1 {[%emt 0:00:35]} Qd8 {[%emt 0:01:24]} 41. gxf6 {
[%emt 0:05:29]} Qxf6 {[%emt 0:00:55]} 42. Be1 {[%emt 0:05:55]} Qg6+ {[%emt 0:
04:39]} 43. Qg2 {[%emt 0:00:08]} Ng5 {[%emt 0:09:49]} 44. Rc1 {[%emt 0:07:02]}
Nf3+ {[%emt 0:00:44]} 45. Kf2 {[%emt 0:01:44]} Qxg2+ 46. Kxg2 Nxe1+ {[%emt 0:
01:38]} 47. Rxe1 {[%emt 0:00:33]} Rc8 {[%emt 0:00:24]} 48. e4 {[%emt 0:03:42]}
Rc3 {[%emt 0:01:12]} 49. exd5 {[%emt 0:00:57]} exd5 {[%emt 0:00:18]} 50. Rd1 {
[%emt 0:00:18]} Rxa3 {[%emt 0:00:38]} 51. Rxd5 {[%emt 0:00:02]} a4 {[%emt 0:01:
12]} 52. Ra5 {[%emt 0:00:20]} Ra1 {[%emt 0:00:29]} 53. h4 {[%emt 0:00:29]} a3 {
[%emt 0:00:18]} 54. h5 {[%emt 0:00:33]} h6 {[%emt 0:01:09]} 55. Ra6 {[%emt 0:
00:13]} Kf7 {[%emt 0:00:36]} 56. Kf2 {[%emt 0:00:54]} Ke7 {[%emt 0:00:51]} 57.
Ke2 {[%emt 0:00:34]} a2 {[%emt 0:00:39]} 58. Kf2 {[%emt 0:02:22]} Rh1 {[%emt 0:
00:32]} 0-1

[Event "African Open (w)"]
[Site "followchess.com"]
[Date "2022.09.26"]
[Round "8"]
[White "Ayemou Akissi Victoire Sinchi"]
[Black "Aramude, Sandra"]
[Result "0-1"]
[ECO "C41"]
[WhiteElo "1182"]
[BlackElo "1813"]
[PlyCount "90"]
[EventDate "2022.??.??"]
[TimeControl "5400+30"]

1. e4 {[%emt 0:00:05]} e5 {[%emt 0:00:16]} 2. Nf3 {[%emt 0:00:12]} d6 {[%emt 0:
00:21]} 3. c3 {[%emt 0:00:51]} Nf6 {[%emt 0:00:52]} 4. d3 {[%emt 0:00:39]} Be7
{[%emt 0:00:52]} 5. Be2 {[%emt 0:00:26]} b6 {[%emt 0:01:13]} 6. O-O {[%emt 0:
00:45]} O-O {[%emt 0:00:25]} 7. Qc2 {[%emt 0:00:23]} Bb7 {[%emt 0:00:51]} 8.
Bg5 {[%emt 0:00:50]} Nbd7 {[%emt 0:00:19]} 9. Nbd2 {[%emt 0:01:08]} Rc8 {
[%emt 0:00:51]} 10. d4 {[%emt 0:00:32]} h6 11. Be3 {[%emt 0:02:18]} c5 {
[%emt 0:04:24]} 12. d5 {[%emt 0:00:35]} Ne8 {[%emt 0:06:49]} 13. a4 {[%emt 0:
07:17]} a6 {[%emt 0:01:27]} 14. Rfb1 {[%emt 0:02:49]} a5 {[%emt 0:04:55]} 15.
Qd1 {[%emt 0:01:11]} Nef6 {[%emt 0:04:00]} 16. b4 {[%emt 0:01:35]} Rb8 {
[%emt 0:05:20]} 17. b5 {[%emt 0:02:00]} Ng4 {[%emt 0:00:27]} 18. Nf1 {[%emt 0:
00:45]} Ndf6 {[%emt 0:00:44]} 19. Bd3 {[%emt 0:00:36]} Nh5 {[%emt 0:05:02]} 20.
g3 {[%emt 0:01:41]} Bc8 {[%emt 0:03:19]} 21. Bd2 {[%emt 0:02:08]} Ngf6 {
[%emt 0:07:11]} 22. Ne3 {[%emt 0:01:59]} g6 {[%emt 0:03:34]} 23. Nc4 {[%emt 0:
01:00]} Kg7 {[%emt 0:00:39]} 24. Qc1 {[%emt 0:00:56]} Rh8 {[%emt 0:00:51]} 25.
Qd1 {[%emt 0:01:42]} Bh3 {[%emt 0:01:27]} 26. Bf1 {[%emt 0:00:56]} Bxf1 {
[%emt 0:00:42]} 27. Qxf1 {[%emt 0:01:28]} Nxe4 {[%emt 0:00:19]} 28. Qd3 {
[%emt 0:00:41]} f5 {[%emt 0:02:38]} 29. Be3 {[%emt 0:00:39]} Nxf2 {[%emt 0:01:
57]} 30. Bxf2 {[%emt 0:05:05]} e4 {[%emt 0:01:00]} 31. Qe3 {[%emt 0:00:49]}
exf3 {[%emt 0:01:05]} 32. Qxf3 {[%emt 0:00:27]} Nf6 {[%emt 0:00:12]} 33. Re1 {
[%emt 0:00:48]} Ne4 {[%emt 0:00:32]} 34. g4 {[%emt 0:01:31]} Nxf2 {[%emt 0:01:
32]} 35. Qxf2 Bh4 36. Qg2 {[%emt 0:02:41]} Bxe1 {[%emt 0:01:23]} 37. Rxe1 {
[%emt 0:00:11]} Rf8 {[%emt 0:00:15]} 38. Re6 {[%emt 0:01:27]} Qg5 {[%emt 0:06:
42]} 39. gxf5 {[%emt 0:01:29]} Qc1+ {[%emt 0:03:28]} 40. Kf2 {[%emt 0:00:35]}
Rxf5+ {[%emt 0:00:22]} 41. Ke2 {[%emt 0:00:36]} Qc2+ {[%emt 0:00:31]} 42. Nd2 {
[%emt 0:00:21]} Rf6 43. Rxf6 {[%emt 0:02:55]} Kxf6 {[%emt 0:08:47]} 44. Ke1 {
[%emt 0:00:28]} Re8+ {[%emt 0:00:45]} 45. Kf1 {[%emt 0:01:45]} Qd1+ 0-1

[Event "African Open (w)"]
[Site "followchess.com"]
[Date "2022.09.27"]
[Round "9"]
[White "Oyenga, Justine Anassika"]
[Black "Mudodo, Refiloe Hazel"]
[Result "0-1"]
[ECO "C02"]
[WhiteElo "1192"]
[BlackElo "1683"]
[PlyCount "54"]
[EventDate "2022.??.??"]
[TimeControl "5400+30"]

1. e4 {[%emt 0:00:08]} e6 {[%emt 0:00:15]} 2. Nf3 {[%emt 0:00:26]} d5 {[%emt 0:
00:30]} 3. e5 {[%emt 0:01:53]} c5 {[%emt 0:00:59]} 4. d4 {[%emt 0:01:04]} Nc6 {
[%emt 0:01:33]} 5. Bg5 {[%emt 0:00:19]} Be7 {[%emt 0:01:57]} 6. Bxe7 {[%emt 0:
00:39]} Ngxe7 {[%emt 0:00:48]} 7. dxc5 {[%emt 0:00:25]} Qa5+ {[%emt 0:01:46]}
8. Qd2 {[%emt 0:03:43]} Qxc5 {[%emt 0:01:24]} 9. a3 {[%emt 0:02:53]} Ng6 {
[%emt 0:03:31]} 10. Bd3 {[%emt 0:04:45]} Ncxe5 {[%emt 0:04:01]} 11. Nxe5 {
[%emt 0:00:24]} Nxe5 {[%emt 0:00:12]} 12. Qg5 {[%emt 0:00:19]} Nxd3+ {[%emt 0:
00:59]} 13. cxd3 {[%emt 0:00:16]} O-O {[%emt 0:00:24]} 14. Nd2 {[%emt 0:01:11]}
Qd4 {[%emt 0:02:00]} 15. O-O {[%emt 0:01:21]} Qxd3 {[%emt 0:01:55]} 16. Nf3 {
[%emt 0:00:25]} Qg6 {[%emt 0:00:34]} 17. Qd2 {[%emt 0:00:50]} Qf6 {[%emt 0:02:
49]} 18. Rac1 {[%emt 0:01:43]} Bd7 {[%emt 0:00:35]} 19. Rc3 {[%emt 0:03:33]}
Rfc8 {[%emt 0:02:15]} 20. Re3 {[%emt 0:03:19]} Bb5 {[%emt 0:07:10]} 21. Rfe1 {
[%emt 0:00:48]} g6 {[%emt 0:07:03]} 22. Nd4 {[%emt 0:00:31]} Bd7 {[%emt 0:01:
09]} 23. Rf3 {[%emt 0:00:24]} Qg7 {[%emt 0:00:38]} 24. Rg3 {[%emt 0:05:32]} Rc7
{[%emt 0:05:56]} 25. h4 {[%emt 0:02:19]} Rac8 {[%emt 0:01:14]} 26. h5 {[%emt 0:
04:41]} Rc4 {[%emt 0:01:00]} 27. Nf3 {[%emt 0:02:23]} Rc2 {[%emt 0:00:47]} 0-1